bitfinex/quotes_ETHUSD_20250319
["timestamp","ask_amount","ask_price","bid_price","bid_amount"]
[1742397126510,0.05665577,2041.2,2041.0,4.89943]
[1742397126715,4.89886,2041.3,2041.0,4.89943]
[1742397126934,0.05649841,2041.1,2041.0,4.89943]
[1742397127138,8.95757991,2041.2,2040.8,5.72977]
[1742397127316,8.95810991,2041.0,2040.6,7.9005]
[1742397127512,8.95810991,2041.0,2040.7,3.0]
[1742397127718,0.05690503,2040.9,2040.7,3.0]
[1742397128855,0.05690503,2040.9,2040.7,7.90026]
[1742397129354,0.05690503,2040.9,2040.7,3.0]
[1742397129517,0.05690503,2040.9,2040.6,9.8008]
[1742397130255,4.95676503,2040.9,2040.6,4.90039]
[1742397130457,0.05690503,2040.9,2040.6,4.90038]
[1742397131115,4.05846991,2040.8,2040.4,4.90083]
[1742397131323,4.05846991,2040.6,2040.4,8.129]
[1742397131756,0.05555393,2040.5,2040.4,8.129]
[1742397131962,0.05555393,2040.5,2040.4,13.02999]
[1742397133255,0.05555393,2040.5,2040.4,8.129]
[1742397133571,4.95641393,2040.5,2040.3,16.9448374]
[1742397134564,4.90099,2040.4,2040.3,16.9448374]
[1742397134768,4.05846991,2040.4,2040.3,16.9448374]
[1742397134937,4.05846991,2040.4,2040.3,0.0058374]
[1742397134938,4.11458794,2040.4,2040.3,0.0058374]
[1742397135263,10.74998773,2040.4,2040.3,0.0058374]
[1742397136877,5.84899773,2040.4,2040.3,0.0058374]
[1742397137172,9.84847794,2040.4,2040.3,0.0058374]
[1742397138835,14.97647794,2040.4,2040.3,0.0058374]
[1742397139032,9.84847794,2040.4,2040.3,0.0058374]
[1742397139241,15.52647794,2040.4,2040.3,0.0058374]
[1742397140670,18.52647794,2040.4,2040.3,0.0058374]
[1742397140970,21.35925873,2040.4,2040.3,7.4e-06]
[1742397142540,16.23125873,2040.4,2040.3,7.4e-06]
[1742397142746,21.35925873,2040.4,2040.3,7.4e-06]
[1742397142945,16.23125873,2040.4,2040.3,7.4e-06]
[1742397143145,21.35925873,2040.4,2040.3,7.4e-06]
[1742397145175,25.41772864,2040.4,2040.3,7.4e-06]
[1742397145377,8.96147991,2039.6,2039.4,0.7566]
[1742397145568,8.96147991,2039.6,2039.2,10.79225]
[1742397145779,0.05405453,2039.5,2039.2,10.79225]
[1742397146151,0.05405453,2039.5,2039.2,5.66425]
[1742397146343,0.05405453,2039.5,2039.2,5.66423]
[1742397146757,0.05405453,2039.5,2039.2,10.56802]
[1742397146985,0.05405453,2039.5,2039.3,4.90342]
[1742397147551,8.96152991,2039.6,2039.2,5.66437]
[1742397147789,8.96152991,2039.6,2039.2,0.7605]
[1742397147790,0.05322482,2039.4,2039.2,0.7605]
[1742397147987,4.90328,2039.5,2039.2,0.7605]
[1742397148282,4.05846991,2039.4,2039.1,4.90389]
[1742397148484,4.11169473,2039.4,2039.1,4.90389]
[1742397148856,0.05322482,2039.4,2039.2,4.90371]
[1742397149072,4.05846991,2039.6,2039.3,4.90364]
[1742397149274,0.05334372,2039.5,2039.2,4.90371]
[1742397150608,4.95653372,2039.5,2039.2,4.90371]
[1742397151010,4.05846991,2039.4,2039.0,5.68913]
[1742397151214,8.96197991,2039.4,2039.0,10.59334]
[1742397151413,4.05846991,2039.4,2039.1,9.80796]
[1742397151584,0.05074429,2039.3,2039.1,4.90394]
[1742397151913,8.96188991,2039.4,2039.1,4.90394]
[1742397152116,0.05041525,2039.2,2039.1,4.90394]
[1742397152276,8.96188991,2039.4,2039.1,4.90394]
[1742397152477,0.05057285,2039.3,2039.0,10.817]
[1742397152780,8.96188991,2039.4,2039.0,10.817]
[1742397153012,0.05045335,2039.2,2039.0,10.817]
[1742397153194,13.86550991,2039.4,2039.0,5.689]
[1742397153515,4.05846991,2039.2,2039.0,0.7848]
[1742397153724,5.68911,2039.1,2038.8,16.94]
[1742397153881,4.05846991,2039.0,2038.8,16.94]
[1742397154111,0.05009798,2038.9,2038.8,16.94]
[1742397155536,0.05009798,2038.9,2038.8,21.84484]
[1742397155904,4.90415,2039.1,2038.8,16.94]
[1742397156105,0.04999717,2038.9,2038.8,16.94]
[1742397156341,4.90415,2039.1,2038.8,16.94]
[1742397156650,5.72727,2038.9,2038.6,3.0]
[1742397156815,4.10851862,2038.8,2038.5,4.90534]
[1742397157029,0.05004871,2038.8,2038.6,4.90519]
[1742397157209,0.05004871,2038.8,2038.7,4.90508]
[1742397157546,4.05846991,2039.1,2038.8,0.8012]
[1742397157920,0.04815556,2039.0,2038.8,0.8012]
[1742397158106,0.04815556,2039.0,2038.8,5.70596]
[1742397158311,0.04815556,2039.0,2038.9,4.9046]
[1742397158722,8.96216991,2039.3,2038.9,4.9046]
[1742397158923,0.04815556,2039.0,2038.9,4.9046]
[1742397159123,4.05846991,2039.1,2038.8,5.7059]
[1742397159327,0.04817889,2039.0,2038.8,0.8012]
[1742397159656,0.04817889,2039.0,2038.8,4.90483]
[1742397160015,0.04817889,2039.0,2038.8,4.90473]
[1742397160231,0.04817889,2039.0,2038.9,4.9046]
[1742397160515,8.96211991,2039.3,2038.9,4.90451]
[1742397160716,4.05846991,2039.3,2039.0,4.90426]
[1742397160921,0.04849797,2039.2,2038.9,4.90453]
[1742397161135,0.04849797,2039.2,2038.9,4.90447]
[1742397161329,0.04849797,2039.2,2039.0,4.90435]
[1742397161552,0.04849797,2039.2,2039.0,4.9042]
[1742397162122,0.04849797,2039.2,2039.0,9.8084]
[1742397162450,0.04849797,2039.2,2039.0,4.9042]
[1742397162647,0.04849797,2039.2,2038.9,5.66807]
[1742397162851,0.04849797,2039.2,2038.9,10.57251]
[1742397163050,0.04849797,2039.2,2038.9,10.57243]
[1742397163255,0.04849797,2039.2,2038.9,5.66794]
[1742397163557,0.04849797,2039.2,2039.0,4.90412]
[1742397163714,0.04849797,2039.2,2039.1,4.95201086]
[1742397163920,0.04849797,2039.2,2039.1,4.90412]
[1742397164258,8.96165991,2039.5,2039.1,4.90412]
[1742397164458,5.71888,2039.8,2039.4,4.90331]
[1742397164613,5.71888,2039.8,2039.5,4.90307]
[1742397164614,0.8164,2039.8,2039.5,4.90307]
[1742397164814,0.04723737,2039.7,2039.6,4.90289]
[1742397165014,0.8164,2040.3,2039.6,5.93134196]
[1742397165218,4.05846991,2040.2,2039.7,4.90268]
[1742397165537,9.00881881,2040.2,2039.8,4.90242]
[1742397165754,5.6697,2039.9,2039.6,4.90291]
[1742397165954,8.96091991,2039.8,2039.5,5.127]
[1742397166118,4.10600682,2039.8,2039.5,7.90314]
[1742397166519,9.00853682,2039.8,2039.5,3.0]
[1742397166748,9.00853682,2039.8,2039.4,4.90324]
[1742397167352,4.10600682,2039.8,2039.4,4.90324]
[1742397167560,0.04753691,2039.8,2039.6,4.9029]
[1742397167743,0.04753691,2039.8,2039.7,5.70828]
[1742397168053,8.95998991,2040.2,2039.8,9.80471]
[1742397168224,4.05846991,2040.0,2039.7,5.70825]
[1742397168431,4.05846991,2040.0,2039.6,4.90275]
[1742397168626,4.05846991,2040.0,2039.7,4.90266]
[1742397168862,5.4446449,2040.0,2039.6,9.80549]
[1742397169154,10.3466149,2040.0,2039.6,4.90274]
[1742397169358,5.4446449,2040.0,2039.6,4.90274]
[1742397169554,10.3467049,2040.0,2039.6,4.90274]
[1742397169857,10.3467049,2040.0,2039.6,9.80549]
[1742397170055,5.4446449,2040.0,2039.7,4.90259]
[1742397170232,4.05846991,2040.0,2039.7,9.80511]
[1742397170432,4.05846991,2040.2,2039.8,4.90224]
[1742397170649,4.05846991,2040.2,2039.8,4.90226]
[1742397170960,4.05846991,2040.0,2039.8,4.90235]
[1742397171157,4.05846991,2040.0,2039.8,4.90232]
[1742397171757,4.05846991,2040.0,2039.9,5.7218]
[1742397171758,0.04969797,2040.0,2039.9,5.7218]
[1742397172258,4.05846991,2040.2,2040.0,4.90195]
[1742397172552,4.05846991,2040.2,2039.9,0.8196]
[1742397172769,10.2379819,2040.2,2039.9,0.8196]
[1742397172920,5.3365019,2040.2,2039.9,10.6237]
[1742397173124,5.3365019,2040.2,2039.9,5.72164]
[1742397173352,10.2380219,2040.2,2039.9,5.72164]
[1742397173550,5.3365019,2040.2,2039.9,5.72164]
[1742397173864,5.3365019,2040.2,2039.9,10.62372]
[1742397174074,5.3365019,2040.2,2039.9,10.62371]
[1742397174281,5.3365019,2040.2,2039.9,5.72164]
[1742397174846,4.05846991,2040.2,2040.0,4.90195]
[1742397175142,4.05846991,2040.2,2040.0,9.80368]
[1742397175640,4.05846991,2040.2,2040.1,4.90172]
[1742397176477,8.96005991,2040.2,2039.8,9.80463]
[1742397176689,4.05846991,2040.2,2039.9,4.90218]
[1742397177053,8.95996991,2040.2,2039.9,4.90218]
[1742397177752,4.05846991,2040.2,2039.9,4.90209]
[1742397178072,4.90087,2040.5,2040.1,4.90171]
[1742397178581,9.78140991,2040.6,2040.2,4.90133]
[1742397178781,14.68210991,2040.6,2040.2,4.90133]
[1742397179173,4.9008,2040.5,2040.2,4.90133]
[1742397179386,4.90138,2040.3,2039.9,4.90215]
[1742397179557,4.84856991,2040.2,2039.9,4.90215]
[1742397180391,9.75017991,2040.2,2039.8,5.6606]
[1742397180689,4.90174,2040.1,2039.8,4.9024]
[1742397181054,9.75017991,2040.2,2039.8,9.8047]
[1742397181286,9.75017991,2040.2,2039.8,9.8046]
[1742397181704,9.75017991,2040.2,2039.9,4.90219]
[1742397182358,9.75017991,2040.2,2039.8,4.9023]
[1742397182359,9.75017991,2040.2,2039.8,7.90235]
[1742397182558,9.75017991,2040.2,2039.8,12.80467]
[1742397183288,9.75017991,2040.2,2039.9,4.90201]
[1742397183289,0.7901,2040.2,2039.9,4.90201]
[1742397183487,5.69168,2040.2,2039.9,4.90201]
[1742397183866,4.05846991,2040.1,2039.9,4.90201]
[1742397184185,4.05846991,2040.1,2039.8,7.90242]
[1742397184392,4.05846991,2039.9,2039.8,3.0]
[1742397184989,8.96029991,2040.1,2039.8,3.0]
[1742397185153,10.4254889,2040.1,2039.8,3.0]
[1742397185556,10.4254889,2040.1,2039.8,7.90235]
[1742397185791,8.96029991,2040.1,2039.8,7.90235]
[1742397186487,8.96029991,2040.1,2039.8,3.0]
[1742397186697,13.86221991,2040.1,2039.8,3.0]
[1742397186903,8.96029991,2040.1,2039.8,7.90243]
[1742397187115,4.05846991,2040.1,2039.8,7.90243]
[1742397187313,4.90173,2040.1,2039.8,7.90243]
[1742397187468,5.122,2040.4,2039.8,7.90243]
[1742397187469,10.5865,2040.4,2040.0,5.65427]
[1742397187665,10.58645,2040.4,2040.0,5.65427]
[1742397187869,4.05846991,2040.3,2040.0,5.6542]
[1742397188379,4.05846991,2040.5,2040.2,4.9014]
[1742397188598,8.95923991,2040.5,2040.2,4.9014]
[1742397188785,4.05846991,2040.5,2040.2,4.9014]
[1742397189712,5.121,2040.8,2040.4,4.90099]
[1742397189713,8.95876991,2040.7,2040.4,4.90099]
[1742397189911,4.05846991,2040.7,2040.4,4.9008]
[1742397190213,8.95827991,2040.9,2040.2,5.72639]
[1742397190407,8.95827991,2040.9,2040.4,4.90099]
[1742397190620,4.05846991,2040.5,2040.2,5.72634]
[1742397190771,4.05846991,2040.5,2040.1,4.9017]
[1742397190772,8.95922991,2040.5,2040.1,4.9017]
[1742397190971,4.05846991,2040.5,2040.2,4.90134]
[1742397191293,4.05846991,2040.5,2040.2,7.90134]
[1742397191294,8.95933991,2040.5,2040.2,7.90134]
[1742397191807,4.90101,2040.4,2040.2,3.0]
[1742397192117,4.05846991,2040.3,2040.0,4.90193]
[1742397192312,0.7779,2040.2,2040.0,4.90172]
[1742397192512,8.95924991,2040.5,2040.1,4.90154]
[1742397192701,4.05846991,2040.3,2040.1,4.90154]
[1742397193013,4.05846991,2040.3,2040.0,4.90192]
[1742397193213,4.05846991,2040.3,2040.0,4.90181]
[1742397193512,4.05846991,2040.3,2040.1,4.90164]
[1742397193717,4.05846991,2040.3,2040.1,4.90158]
[1742397194625,4.9012,2040.4,2040.0,4.90179]
[1742397194828,4.05846991,2040.4,2040.2,0.79]
[1742397195129,4.05846991,2040.4,2040.2,10.59271]
[1742397195281,4.05846991,2040.4,2040.2,5.69132]
[1742397196016,4.05846991,2040.4,2040.1,4.90164]
[1742397196221,8.95954991,2040.4,2040.0,10.60946]
[1742397196523,4.05846991,2040.4,2040.1,4.9016]
[1742397197818,8.95951991,2040.4,2040.1,4.9016]
[1742397198215,4.05846991,2040.2,2040.0,5.7076]
[1742397198515,9.72371991,2040.2,2039.8,5.69956]
[1742397198719,4.05846991,2040.0,2039.8,3.0]
[1742397198885,4.05846991,2040.0,2039.7,3.36647445]
[1742397198886,8.96054991,2040.0,2039.7,3.36647445]
[1742397199111,4.05846991,2040.0,2039.7,8.26906445]
[1742397199313,4.05846991,2040.0,2039.6,22.64604]
[1742397199314,4.90234,2039.9,2039.6,17.7432]
[1742397199544,4.05846991,2039.8,2039.6,16.946]
[1742397199725,8.96100991,2039.8,2039.6,16.946]
[1742397200047,4.82216991,2039.8,2039.6,16.946]
[1742397201022,4.90201,2040.0,2039.6,16.946]
[1742397201229,4.05846991,2040.0,2039.7,4.90259]
[1742397201426,4.05846991,2040.0,2039.8,4.90236]
[1742397201829,4.05846991,2040.0,2039.7,4.90259]
[1742397203142,4.05846991,2040.0,2039.7,9.8051]
[1742397203329,4.05846991,2040.0,2039.7,4.90251]
[1742397204862,8.96090991,2039.8,2039.4,10.81848]
[1742397205019,4.05846991,2039.6,2039.3,10.02163]
[1742397205219,8.96141991,2039.6,2039.1,0.36746382]
[1742397205451,4.05846991,2039.4,2039.1,10.02212]
[1742397205762,4.05846991,2039.4,2039.1,10.39316453]
[1742397205924,4.05846991,2039.4,2039.2,3.0]
[1742397206262,4.05846991,2039.4,2039.1,10.02195]
[1742397206430,8.96188991,2039.4,2039.1,5.118]
[1742397206628,4.05846991,2039.3,2039.0,22.67333]
[1742397206847,4.05846991,2039.3,2039.0,22.6732]
[1742397207215,4.05846991,2039.3,2039.1,4.90403]
[1742397207415,4.05846991,2039.4,2039.2,4.90388]
[1742397207620,4.05846991,2039.4,2039.1,4.90404]
[1742397207831,8.96194991,2039.4,2039.0,22.67334]
[1742397208157,4.05846991,2039.1,2038.8,4.90464]
[1742397208315,4.05846991,2039.1,2039.0,4.90436]
[1742397208520,0.8002,2039.3,2039.0,4.90436]
[1742397208521,4.85866991,2039.3,2039.0,4.90436]
[1742397208865,4.05846991,2039.3,2039.1,4.9041]
[1742397209236,4.05846991,2039.3,2039.0,6.185206]
[1742397209632,8.96266991,2039.1,2038.8,3.0]
[1742397209955,8.96266991,2039.1,2038.7,10.39943601]
[1742397209956,4.05846991,2038.9,2038.7,7.90499]
[1742397210133,4.05846991,2038.9,2038.7,3.0]
[1742397210535,8.96307991,2038.9,2038.7,3.0]
[1742397210740,4.05846991,2038.9,2038.7,3.0]
[1742397211249,8.96315991,2038.9,2038.5,5.67424]
[1742397211447,4.05846991,2038.7,2038.5,7.90555]
[1742397211633,0.8137,2038.8,2038.6,7.90532]
[1742397212131,4.90508,2038.7,2038.6,3.0]
[1742397212332,4.05846991,2038.7,2038.6,3.0]
[1742397213972,4.05846991,2038.7,2038.6,7.90532]
[1742397214192,0.8137,2038.8,2038.6,7.90532]
[1742397214391,4.05846991,2038.7,2038.5,7.90553]
[1742397214572,4.05846991,2038.7,2038.6,4.90532]
[1742397215101,0.7865,2039.0,2038.5,7.90551]
[1742397215253,4.05846991,2039.1,2038.8,9.80934]
[1742397215448,4.05846991,2039.1,2038.6,0.80540235]
[1742397215449,4.05846991,2039.1,2039.0,4.90436]
[1742397215647,4.05846991,2039.1,2038.9,4.90452]
[1742397215845,4.05846991,2039.1,2038.9,4.90456]
[1742397216077,4.05846991,2039.1,2038.9,9.80904]
[1742397216261,0.8009,2039.4,2039.0,0.04789418]
[1742397216472,4.05846991,2039.3,2039.1,4.90394]
[1742397217051,4.05846991,2039.3,2039.1,4.90406]
[1742397217905,0.8009,2039.4,2039.1,4.90397]
[1742397218184,8.96210991,2039.3,2039.0,4.90432]
[1742397218363,4.05846991,2039.1,2038.8,4.90465]
[1742397218566,4.05846991,2038.9,2038.8,4.90465]
[1742397219589,4.81336991,2038.9,2038.6,4.90523]
[1742397219765,4.81336991,2038.9,2038.6,4.90517]
[1742397219965,4.05846991,2038.9,2038.7,4.9049]
[1742397220477,0.7549,2039.1,2038.7,1.10047737]
[1742397220677,4.05846991,2039.2,2038.9,4.90453]
[1742397221002,4.05846991,2039.2,2039.0,4.90432]
[1742397221385,4.05846991,2039.2,2038.9,4.90457]
[1742397221699,4.05846991,2039.2,2038.9,9.80902]
[1742397222087,4.05846991,2039.0,2038.8,4.9048]
[1742397222906,4.05846991,2039.0,2038.7,4.90485]
[1742397223109,4.05846991,2039.0,2038.7,9.80978]
[1742397223406,4.05846991,2038.8,2038.6,4.90528]
[1742397223762,4.05846991,2038.8,2038.6,9.81047]
[1742397224006,4.05846991,2038.8,2038.7,4.90508]
[1742397224237,4.05846991,2039.0,2038.7,9.80998]
[1742397224440,4.05846991,2039.0,2038.9,4.9046]
[1742397224613,0.7972,2039.1,2038.9,4.9046]
[1742397224819,0.7972,2039.1,2038.9,4.9045]
[1742397225134,4.05846991,2039.2,2038.9,4.90448]
[1742397225526,8.96241991,2039.2,2038.9,4.90448]
[1742397225727,4.05846991,2039.0,2038.8,4.90479]
[1742397226240,4.05846991,2039.2,2038.9,4.9046]
[1742397226450,4.05846991,2039.2,2039.0,4.90428]
[1742397226603,4.05846991,2039.2,2039.0,4.90421]
[1742397227433,4.05846991,2039.2,2038.9,9.80907]
[1742397227643,4.05846991,2039.2,2039.0,4.90428]
[1742397227943,4.05846991,2039.2,2038.9,4.90449]
[1742397228149,4.05846991,2039.2,2039.0,4.90435]
[1742397228647,4.05846991,2039.2,2038.9,4.90449]
[1742397228950,8.96237991,2039.2,2038.9,4.90449]
[1742397229133,4.05846991,2039.2,2039.0,4.90433]
[1742397229868,4.05846991,2039.2,2039.0,4.90424]
[1742397230169,4.05846991,2039.2,2039.0,4.90434]
[1742397230345,4.05846991,2039.2,2038.9,9.80905]
[1742397230668,4.05846991,2039.2,2038.9,4.90448]
[1742397230871,4.05846991,2039.2,2038.9,9.80894]
[1742397231175,4.05846991,2039.2,2039.0,4.90435]
[1742397231571,4.05846991,2039.2,2038.9,4.90446]
[1742397231876,8.96237991,2039.2,2038.8,9.80944]
[1742397232058,8.96237991,2039.2,2038.9,4.9046]
[1742397233474,4.05846991,2039.2,2039.0,4.90435]
[1742397233837,4.05846991,2039.2,2039.0,9.80859]
[1742397234040,4.05846991,2039.2,2039.0,4.90424]
[1742397234240,4.05846991,2039.4,2039.2,4.9038]
[1742397234940,4.05846991,2039.6,2039.3,4.90364]
[1742397235181,4.05846991,2039.6,2039.3,9.80713]
[1742397235362,4.05846991,2039.6,2039.3,4.90349]
[1742397235542,9.9375749,2039.6,2039.2,4.90387]
[1742397235882,5.70269,2039.3,2039.0,4.90434]
[1742397236082,4.05846991,2039.2,2039.0,4.90421]
[1742397236680,4.05846991,2039.4,2039.2,4.90388]
[1742397236890,4.05846991,2039.4,2039.1,4.90399]
[1742397237076,4.05846991,2039.4,2039.2,4.90386]
[1742397237391,4.05846991,2039.4,2039.1,4.90399]
[1742397237859,4.05846991,2039.4,2039.3,4.90364]
[1742397238374,0.8022,2039.7,2039.4,4.90328]
[1742397238687,0.8022,2039.7,2039.3,4.90363]
[1742397238688,4.05846991,2039.5,2039.3,4.90363]
[1742397238893,0.8284,2039.4,2039.0,3.0]
[1742397239062,4.05846991,2039.1,2039.0,7.90435]
[1742397239450,4.05846991,2039.1,2039.0,3.0]
[1742397239952,4.05846991,2039.1,2038.9,3.0]
[1742397240149,5.4450729,2039.1,2038.8,4.9047]
[1742397240354,4.05846991,2039.1,2038.9,4.90443]
[1742397241079,4.86906991,2039.1,2038.8,7.90476]
[1742397241295,4.86906991,2039.1,2038.9,4.90443]
[1742397241487,0.8106,2039.1,2038.9,9.80889]
[1742397241753,4.90367,2039.3,2039.1,4.90412]
[1742397241754,4.05846991,2039.2,2039.1,4.90412]
[1742397241957,4.05846991,2039.4,2039.2,4.90379]
[1742397242395,4.05846991,2039.4,2039.0,4.9043]
[1742397242598,4.05846991,2039.2,2038.9,4.90441]
[1742397242759,4.05846991,2039.2,2039.0,4.90426]
[1742397242960,4.05846991,2039.2,2039.1,4.90412]
[1742397243295,8.96200991,2039.4,2039.0,4.90435]
[1742397243495,4.05846991,2039.2,2039.0,4.90435]
[1742397243682,4.85816991,2039.2,2038.9,4.90459]
[1742397243856,4.05846991,2039.0,2038.9,4.90459]
[1742397244281,4.05846991,2039.0,2038.8,4.9048]
[1742397244484,4.05846991,2039.0,2038.7,7.90505]
[1742397244485,4.05846991,2039.0,2038.7,7.90502]
[1742397244685,4.05846991,2039.0,2038.8,4.90475]
[1742397245194,4.05846991,2039.0,2038.6,9.81052]
[1742397245502,4.05846991,2038.8,2038.6,9.8104]
[1742397245656,4.05846991,2038.8,2038.7,4.90508]
[1742397246386,4.05846991,2039.0,2038.7,4.90508]
[1742397246594,8.96283991,2039.0,2038.7,4.90508]
[1742397246902,4.05846991,2039.0,2038.6,4.90532]
[1742397247107,4.05846991,2039.0,2038.7,4.9049]
[1742397247300,8.96282991,2039.0,2038.7,4.9049]
[1742397247462,8.96282991,2039.0,2038.6,4.90518]
[1742397247663,4.05846991,2038.8,2038.6,9.81035]
[1742397247965,4.05846991,2038.8,2038.7,4.90508]
[1742397248167,4.05846991,2039.0,2038.7,4.90508]
[1742397249323,4.05846991,2039.0,2038.7,9.81004]
[1742397249527,4.05846991,2039.0,2038.7,4.90496]
[1742397250117,4.86696991,2038.8,2038.5,7.90548]
[1742397250322,4.05846991,2038.6,2038.4,21.85267]
[1742397250525,8.96387991,2038.6,2038.2,9.9349371]
[1742397250692,4.05846991,2038.4,2038.3,4.90604]
[1742397251018,4.05846991,2038.4,2038.2,5.0286871]
[1742397251513,4.82726991,2038.4,2038.2,0.1225571]
[1742397251730,14.89596837,2038.4,2038.2,0.1225571]
[1742397251934,0.7688,2038.4,2038.2,5.0288271]
[1742397252102,4.82726991,2038.4,2038.3,4.90604]
[1742397252300,4.05846991,2038.4,2038.3,4.90604]
[1742397252706,4.05846991,2038.4,2038.2,5.0286771]
[1742397252911,4.05846991,2038.4,2038.3,4.90604]
[1742397253738,4.05846991,2038.4,2038.2,5.0286771]
[1742397253907,4.05846991,2038.4,2038.3,4.90604]
[1742397254238,4.05846991,2038.4,2038.2,5.0287471]
[1742397254433,4.05846991,2038.4,2038.2,0.1225571]
[1742397254638,4.05846991,2038.4,2038.2,5.0288271]
[1742397255043,4.05846991,2038.4,2038.2,9.9349671]
[1742397255242,4.05846991,2038.4,2038.2,5.0286971]
[1742397255427,4.05846991,2038.4,2038.3,4.90604]
[1742397256239,4.05846991,2038.4,2038.2,9.9348971]
[1742397256541,4.05846991,2038.4,2038.2,0.1225571]
[1742397256743,6.07618699,2038.3,2038.2,0.1225571]
[1742397257038,4.4643169,2038.3,2038.2,0.1225571]
[1742397257237,4.05846991,2038.3,2038.2,0.1225571]
[1742397257938,4.05846991,2038.3,2038.2,5.0288371]
[1742397258708,4.05846991,2038.3,2038.2,0.1225571]
[1742397258709,9.75140991,2038.3,2038.2,0.1225571]
[1742397259052,4.84536991,2038.3,2038.2,0.1225571]
[1742397259623,9.75140991,2038.3,2038.2,0.1225571]
[1742397259828,11.07444682,2038.3,2038.2,0.1225571]
[1742397260446,6.16840682,2038.3,2038.2,0.1225571]
[1742397260746,4.84536991,2038.3,2038.2,0.1225571]
[1742397261046,9.75140991,2038.3,2038.2,0.1225571]
[1742397261618,5.69294,2038.3,2038.2,0.1225571]
[1742397262209,0.7869,2038.3,2038.2,0.1225571]
[1742397262945,5.69294,2038.3,2038.2,0.1225571]
[1742397263107,0.7869,2038.3,2038.2,0.1225571]
[1742397263844,4.05846991,2038.5,2038.3,4.90602]
[1742397265644,9.75810991,2038.3,2038.2,0.1225571]
[1742397266944,13.30810991,2038.3,2038.2,0.1225571]
[1742397267522,5.69749,2037.7,2037.3,10.83229]
[1742397267850,4.05846991,2037.7,2037.4,7.90821]
[1742397268145,8.96598991,2037.7,2037.4,4.90821]
[1742397268310,4.05846991,2037.5,2037.3,10.83232]
[1742397268509,4.05846991,2037.5,2037.3,5.72132]
[1742397269111,8.96602991,2037.7,2037.4,4.90812]
[1742397269309,4.05846991,2037.7,2037.4,4.90812]
[1742397269746,8.96598991,2037.7,2037.3,6.08525725]
[1742397270062,4.05846991,2037.7,2037.5,4.90797]
[1742397270354,4.05846991,2037.7,2037.5,9.81568]
[1742397271018,4.05846991,2037.7,2037.5,4.90781]
[1742397271219,4.05846991,2037.7,2037.6,4.90773]
[1742397271519,4.05846991,2037.7,2037.4,4.90821]
[1742397271715,4.05846991,2037.7,2037.4,4.90804]
[1742397271911,4.05846991,2037.7,2037.5,4.90797]
[1742397272255,4.05846991,2037.7,2037.6,4.90773]
[1742397272430,4.05846991,2037.7,2037.5,4.90797]
[1742397272955,4.05846991,2037.7,2037.4,4.90819]
[1742397273141,4.05846991,2037.7,2037.4,9.8163]
[1742397273754,4.05846991,2037.7,2037.4,4.90808]
[1742397273930,4.05846991,2037.7,2037.4,9.81615]
[1742397274131,4.05846991,2037.7,2037.4,4.90807]
[1742397274339,4.05846991,2037.7,2037.1,21.86891]
[1742397274340,8.96651991,2037.5,2037.1,4.9088]
[1742397274539,4.05846991,2037.4,2037.2,4.9086]
[1742397274739,4.86966991,2037.6,2037.3,4.90837]
[1742397275357,4.86966991,2037.6,2034.9,1.08866965]
[1742397275358,0.7986,2036.4,2034.9,1.08866965]
[1742397275558,0.7986,2035.2,2034.9,1.08866965]
[1742397275772,4.9136,2035.2,2034.9,1.08866965]
[1742397275983,0.7926,2036.2,2035.0,25.95647123]
[1742397276130,4.05846991,2035.9,2035.3,4.91328]
[1742397276471,4.05846991,2036.0,2035.9,4.91183]
[1742397276658,4.05846991,2036.0,2035.5,3.0]
[1742397276831,0.7926,2036.5,2035.4,5.232]
[1742397276832,4.05846991,2035.8,2035.7,3.0]
[1742397277034,4.05846991,2035.8,2035.5,4.91271]
[1742397277241,4.52843237,2036.0,2035.5,0.37765352]
[1742397277444,4.52843237,2036.2,2035.8,4.91198]
[1742397278330,4.52843237,2036.2,2035.9,4.91168]
[1742397278537,4.52843237,2036.3,2036.1,4.91135]
[1742397278737,0.778,2036.8,2036.2,4.9111]
[1742397279070,0.778,2036.8,2035.9,10.14375]
[1742397279231,0.778,2036.8,2036.3,4.91076]
[1742397279635,0.778,2036.8,2036.4,4.9106]
[1742397279848,0.778,2036.8,2036.4,4.91048]
[1742397280275,0.778,2036.8,2036.5,4.91037]
[1742397280460,4.52843237,2036.6,2035.8,16.965]
[1742397280668,4.9099,2036.7,2036.0,0.7909]
[1742397280976,5.30643237,2036.8,2036.3,4.9107]
[1742397281175,10.21620237,2036.8,2036.3,9.82139]
[1742397281480,4.90992,2036.7,2036.3,4.91069]
[1742397282050,15.12598237,2036.8,2036.4,4.91062]
[1742397282373,10.21620237,2036.8,2036.4,4.91062]
[1742397282681,0.778,2036.8,2036.6,4.91003]
[1742397282976,4.52843237,2037.0,2036.6,4.90991]
[1742397283180,14.34709237,2037.0,2036.6,4.90991]
[1742397283473,14.34713237,2037.0,2036.6,4.90991]
[1742397283688,9.43819237,2036.8,2036.4,5.28060612]
[1742397283867,10.87295361,2036.8,2036.4,5.28060612]
[1742397284376,5.96319361,2036.8,2036.5,4.91028]
[1742397285365,10.87290361,2036.8,2036.4,5.28064612]
[1742397285580,5.96319361,2036.8,2036.5,4.91037]
[1742397285880,1.43476124,2036.8,2036.5,4.91037]
[1742397286382,1.43476124,2036.8,2036.5,9.82055]
[1742397286580,4.90958,2036.9,2036.5,4.91024]
[1742397286739,9.81918,2036.9,2036.5,4.91024]
[1742397287163,4.90954,2036.9,2036.5,4.91024]
[1742397288080,4.90954,2036.9,2036.4,10.19042412]
[1742397288277,9.81913,2036.9,2036.4,5.27982412]
[1742397288483,1.43475624,2036.8,2036.4,5.27976412]
[1742397288679,1.43475624,2036.8,2036.5,4.91028]
[1742397288881,9.43763237,2037.0,2036.6,4.91013]
[1742397289087,4.90945,2036.9,2036.5,4.91028]
[1742397289860,9.43761237,2037.0,2036.5,4.91028]
[1742397290060,4.90918,2037.0,2036.6,4.91005]
[1742397290297,4.90918,2037.0,2036.5,4.91022]
[1742397290596,6.94470624,2037.0,2036.6,4.91007]
[1742397290975,2.03552624,2037.0,2036.6,9.82006]
[1742397291172,0.7907,2037.1,2036.8,4.90961]
[1742397291505,0.7907,2037.1,2036.8,4.90965]
[1742397291997,0.7907,2037.1,2036.7,4.90985]